[Event "Early-Titled-Tuesday-Blitz-May-07-2024"]
[Site "Chess.com"]
[Date "2024.05.07"]
[Round "8"]
[White "martinmena"]
[Black "Burgsvik"]
[Result "0-1"]
[WhiteElo "2117"]
[BlackElo "2330"]
[TimeControl "180+1"]
[EndTime "9:33:42 PDT"]
[Termination "Burgsvik won on time"]

1. c4 {[%clk 0:03:00.9]} 1... c5 {[%clk 0:03:00.9]} 2. Nc3 {[%clk 0:02:57]} 2...
Nc6 {[%clk 0:03:01.6]} 3. g3 {[%clk 0:02:56.8]} 3... d6 {[%clk 0:03:02]} 4. Bg2
{[%clk 0:02:57.2]} 4... Be6 {[%clk 0:03:02.9]} 5. d3 {[%clk 0:02:56.4]} 5... Qc8
{[%clk 0:03:01.9]} 6. e4 {[%clk 0:02:55.7]} 6... g6 {[%clk 0:03:01.5]} 7. Nge2
{[%clk 0:02:53.3]} 7... Bg7 {[%clk 0:03:00.8]} 8. O-O {[%clk 0:02:53.8]} 8...
Bh3 {[%clk 0:03:00.2]} 9. Be3 {[%clk 0:02:54.2]} 9... h5 {[%clk 0:02:59.7]} 10.
Nd5 {[%clk 0:02:47.4]} 10... Rb8 {[%clk 0:02:57.4]} 11. Bxh3 {[%clk 0:02:44.5]}
11... Qxh3 {[%clk 0:02:54.7]} 12. Nc7+ {[%clk 0:02:43.2]} 12... Kd8 {[%clk
0:02:48.8]} 13. Nd5 {[%clk 0:02:31.8]} 13... Bxb2 {[%clk 0:02:47.4]} 14. Rb1
{[%clk 0:02:30.9]} 14... Be5 {[%clk 0:02:45.6]} 15. f4 {[%clk 0:02:26.7]} 15...
Bg7 {[%clk 0:02:35.2]} 16. f5 {[%clk 0:02:26.5]} 16... gxf5 {[%clk 0:02:25.6]}
17. exf5 {[%clk 0:02:15.2]} 17... Nf6 {[%clk 0:02:19.3]} 18. Nec3 {[%clk
0:00:21]} 18... Ng4 {[%clk 0:02:12.6]} 19. Qd2 {[%clk 0:00:17]} 19... Bxc3
{[%clk 0:01:58.1]} 20. Nxc3 {[%clk 0:00:12.2]} 20... Nce5 {[%clk 0:01:52.5]} 21.
Bf4 {[%clk 0:00:04.2]} 21... h4 {[%clk 0:01:44.1]} 22. Bxe5 {[%clk 0:00:02.7]}
22... Nxe5 {[%clk 0:01:41.9]} 23. Qg2 {[%clk 0:00:01.3]} 23... hxg3 {[%clk
0:01:36.3]} 24. hxg3 {[%clk 0:00:00.6]} 24... Qxg2+ {[%clk 0:01:31.3]} 25. Kxg2
{[%clk 0:00:01.5]} 25... Nxd3 {[%clk 0:01:31.4]} 26. Rfd1 {[%clk 0:00:01.8]}
26... Ne5 {[%clk 0:01:28.5]} 27. Nd5 {[%clk 0:00:02.4]} 27... Ng4 {[%clk
0:01:27.3]} 28. Re1 {[%clk 0:00:02.4]} 28... Rh2+ {[%clk 0:01:26]} 29. Kf3
{[%clk 0:00:02.9]} 29... Ne5+ {[%clk 0:01:25.5]} 30. Kf4 {[%clk 0:00:03.5]}
30... Kd7 {[%clk 0:01:24.6]} 31. f6 {[%clk 0:00:03.3]} 31... Rf2+ {[%clk
0:01:23.6]} 32. Ke3 {[%clk 0:00:03.3]} 32... Rf3+ {[%clk 0:01:23.8]} 33. Ke2
{[%clk 0:00:03.1]} 33... exf6 {[%clk 0:01:21.8]} 34. Nf4 {[%clk 0:00:02.5]}
34... Rxg3 {[%clk 0:01:20.8]} 35. Rbd1 {[%clk 0:00:02.1]} 35... Ra3 {[%clk
0:01:19.9]} 36. Kf1 {[%clk 0:00:01.8]} 36... Nxc4 {[%clk 0:01:18.2]} 37. Nd5
{[%clk 0:00:02.3]} 37... Kc6 {[%clk 0:01:14]} 38. Nxf6 {[%clk 0:00:02.5]} 38...
Rf3+ {[%clk 0:01:13.8]} 39. Kg2 {[%clk 0:00:02.1]} 39... Rxf6 {[%clk 0:01:14.7]}
40. Rc1 {[%clk 0:00:01.9]} 40... Rg8+ {[%clk 0:01:14.5]} 0-1

[Event "Early-Titled-Tuesday-Blitz-May-07-2024"]
[Site "Chess.com"]
[Date "2024.05.07"]
[Round "8"]
[White "N_I_Chess"]
[Black "Chessdreamer2020"]
[Result "0-1"]
[WhiteElo "2330"]
[BlackElo "2511"]
[TimeControl "180+1"]
[EndTime "9:33:43 PDT"]
[Termination "Chessdreamer2020 won by resignation"]

1. d4 {[%clk 0:02:38.7]} 1... d6 {[%clk 0:03:00]} 2. c4 {[%clk 0:02:38.8]} 2...
e5 {[%clk 0:03:00.1]} 3. e3 {[%clk 0:02:38.6]} 3... Nd7 {[%clk 0:02:59.9]} 4.
Nc3 {[%clk 0:02:37.2]} 4... Ngf6 {[%clk 0:03:00.3]} 5. Bd3 {[%clk 0:02:37]} 5...
g6 {[%clk 0:03:00.7]} 6. Nge2 {[%clk 0:02:36.6]} 6... Bg7 {[%clk 0:03:01.2]} 7.
O-O {[%clk 0:02:37]} 7... O-O {[%clk 0:03:01.7]} 8. b3 {[%clk 0:02:33.7]} 8...
Re8 {[%clk 0:03:01.4]} 9. Qc2 {[%clk 0:02:32.8]} 9... c6 {[%clk 0:02:58.6]} 10.
Bb2 {[%clk 0:02:32.7]} 10... Qe7 {[%clk 0:02:59.1]} 11. Rac1 {[%clk 0:02:31.9]}
11... e4 {[%clk 0:02:58.4]} 12. a4 {[%clk 0:02:19.3]} 12... exd3 {[%clk
0:02:57.8]} 13. Qxd3 {[%clk 0:02:20.2]} 13... Ne4 {[%clk 0:02:54.3]} 14. Nd1
{[%clk 0:02:17.3]} 14... f5 {[%clk 0:02:51]} 15. f3 {[%clk 0:02:10.5]} 15...
Nef6 {[%clk 0:02:48.7]} 16. Ba3 {[%clk 0:02:08]} 16... c5 {[%clk 0:02:41.6]} 17.
b4 {[%clk 0:02:01.2]} 17... b6 {[%clk 0:02:39.8]} 18. a5 {[%clk 0:01:53.7]}
18... Ba6 {[%clk 0:02:34.3]} 19. b5 {[%clk 0:01:51.8]} 19... Bc8 {[%clk
0:02:33.6]} 20. a6 {[%clk 0:01:48.7]} 20... Nf8 {[%clk 0:02:30.8]} 21. Re1
{[%clk 0:01:40.7]} 21... Be6 {[%clk 0:02:19.8]} 22. Rc2 {[%clk 0:01:18.8]} 22...
Rad8 {[%clk 0:02:19.6]} 23. d5 {[%clk 0:01:17.8]} 23... Bc8 {[%clk 0:02:15.9]}
24. Bc1 {[%clk 0:01:15.7]} 24... N6d7 {[%clk 0:02:15.5]} 25. f4 {[%clk
0:01:07.3]} 25... Nf6 {[%clk 0:02:14.5]} 26. Rf1 {[%clk 0:00:52.4]} 26... Ne4
{[%clk 0:02:13.7]} 27. Rf3 {[%clk 0:00:51.2]} 27... Nd7 {[%clk 0:02:13.4]} 28.
h3 {[%clk 0:00:49.1]} 28... Ndf6 {[%clk 0:02:12.3]} 29. Kh2 {[%clk 0:00:46.9]}
29... h5 {[%clk 0:02:11]} 30. Ra2 {[%clk 0:00:44.1]} 30... Kf7 {[%clk
0:02:10.6]} 31. Rc2 {[%clk 0:00:43.5]} 31... Rh8 {[%clk 0:02:10.6]} 32. Ra2
{[%clk 0:00:42.2]} 32... Rde8 {[%clk 0:02:10.4]} 33. Rc2 {[%clk 0:00:42.2]}
33... Ng4+ {[%clk 0:02:10.2]} 34. Kg1 {[%clk 0:00:39]} 34... Ngf6 {[%clk
0:02:10.1]} 35. Bb2 {[%clk 0:00:33.7]} 35... h4 {[%clk 0:02:09.9]} 36. Bc1
{[%clk 0:00:26]} 36... Nh5 {[%clk 0:02:09.7]} 37. Kh2 {[%clk 0:00:23.9]} 37...
Nhg3 {[%clk 0:02:09.6]} 38. Nxg3 {[%clk 0:00:20.4]} 38... hxg3+ {[%clk
0:02:09.4]} 39. Kg1 {[%clk 0:00:19.6]} 39... Bf6 {[%clk 0:02:09.1]} 40. Bd2
{[%clk 0:00:19.3]} 40... Bh4 {[%clk 0:02:07.9]} 41. Be1 {[%clk 0:00:19.3]} 41...
Rhg8 {[%clk 0:02:07.6]} 42. Qe2 {[%clk 0:00:18]} 42... Ref8 {[%clk 0:02:07.2]}
43. Nc3 {[%clk 0:00:18.2]} 43... Ke8 {[%clk 0:02:07.2]} 44. Nxe4 {[%clk
0:00:17.9]} 44... Qxe4 {[%clk 0:02:03.2]} 45. Bxg3 {[%clk 0:00:16.5]} 45... Bxg3
{[%clk 0:02:02.1]} 46. Rxg3 {[%clk 0:00:17.4]} 46... Kd8 {[%clk 0:02:01.7]} 47.
Rc1 {[%clk 0:00:17.2]} 47... Re8 {[%clk 0:02:01]} 48. Rf3 {[%clk 0:00:16.6]}
48... Kc7 {[%clk 0:02:00.1]} 49. Kh1 {[%clk 0:00:15.8]} 49... g5 {[%clk
0:01:59.8]} 50. fxg5 {[%clk 0:00:15.6]} 50... Rxg5 {[%clk 0:02:00.5]} 51. Rcf1
{[%clk 0:00:16.1]} 51... Reg8 {[%clk 0:02:00.8]} 52. Qf2 {[%clk 0:00:16]} 52...
Rxg2 {[%clk 0:01:59.5]} 53. Qxg2 {[%clk 0:00:16.1]} 53... Rxg2 {[%clk
0:02:00.2]} 54. Kxg2 {[%clk 0:00:17]} 54... Qxc4 {[%clk 0:01:59.9]} 55. Rf4
{[%clk 0:00:16]} 55... Qxb5 {[%clk 0:01:59.7]} 56. h4 {[%clk 0:00:16.3]} 56...
Qxa6 {[%clk 0:01:57.4]} 57. h5 {[%clk 0:00:16.5]} 57... Qe2+ {[%clk 0:01:57.7]}
0-1

[Event "Early-Titled-Tuesday-Blitz-May-07-2024"]
[Site "Chess.com"]
[Date "2024.05.07"]
[Round "8"]
[White "ab-lsv"]
[Black "SpongeBob_03"]
[Result "1-0"]
[WhiteElo "2381"]
[BlackElo "2251"]
[TimeControl "180+1"]
[EndTime "9:33:43 PDT"]
[Termination "ab-lsv won by checkmate"]

1. d4 {[%clk 0:02:59.6]} 1... Nf6 {[%clk 0:02:58.2]} 2. c4 {[%clk 0:03:00]} 2...
e6 {[%clk 0:02:57.9]} 3. Nc3 {[%clk 0:03:00.3]} 3... d5 {[%clk 0:02:58.1]} 4.
Bg5 {[%clk 0:02:59.4]} 4... Be7 {[%clk 0:02:42.5]} 5. e3 {[%clk 0:02:59.6]} 5...
b6 {[%clk 0:02:40]} 6. cxd5 {[%clk 0:02:52.7]} 6... Nxd5 {[%clk 0:02:38.6]} 7.
Bxe7 {[%clk 0:02:34.9]} 7... Qxe7 {[%clk 0:02:28.9]} 8. Nxd5 {[%clk 0:02:33.3]}
8... exd5 {[%clk 0:02:28]} 9. Nf3 {[%clk 0:02:33.3]} 9... O-O {[%clk 0:02:23.2]}
10. Bd3 {[%clk 0:02:31.3]} 10... c5 {[%clk 0:02:13]} 11. dxc5 {[%clk 0:02:21.9]}
11... bxc5 {[%clk 0:02:13.9]} 12. O-O {[%clk 0:02:22]} 12... Rd8 {[%clk
0:02:11.7]} 13. Rc1 {[%clk 0:02:20]} 13... Bg4 {[%clk 0:02:06.6]} 14. Qc2 {[%clk
0:02:12.5]} 14... Bxf3 {[%clk 0:01:51.1]} 15. gxf3 {[%clk 0:02:13.4]} 15... Qg5+
{[%clk 0:01:40]} 16. Kh1 {[%clk 0:02:13.4]} 16... Qh5 {[%clk 0:01:38.7]} 17. Be2
{[%clk 0:02:08.7]} 17... Nd7 {[%clk 0:01:37.3]} 18. f4 {[%clk 0:01:58.6]} 18...
Qh4 {[%clk 0:01:30.5]} 19. Bf3 {[%clk 0:01:46.3]} 19... Nb6 {[%clk 0:01:15.5]}
20. Qxc5 {[%clk 0:01:41.7]} 20... Rac8 {[%clk 0:01:14.4]} 21. Qd4 {[%clk
0:01:15.2]} 21... Rxc1 {[%clk 0:01:12.3]} 22. Rxc1 {[%clk 0:01:15.5]} 22... Qxf2
{[%clk 0:01:11.7]} 23. Bg2 {[%clk 0:01:08.2]} 23... Nc4 {[%clk 0:01:07.2]} 24.
Bxd5 {[%clk 0:00:58.1]} 24... Nxe3 {[%clk 0:00:59.5]} 25. Bxf7+ {[%clk
0:00:36.1]} 25... Kxf7 {[%clk 0:00:59.1]} 26. Rc7+ {[%clk 0:00:36.1]} 26... Kg6
{[%clk 0:00:55.3]} 27. Rxg7+ {[%clk 0:00:25.5]} 27... Kh5 {[%clk 0:00:39]} 28.
Qe5+ {[%clk 0:00:21.9]} 28... Kh4 {[%clk 0:00:38.9]} 29. Qg5+ {[%clk 0:00:21.5]}
29... Kh3 {[%clk 0:00:38.5]} 30. Rxh7+ {[%clk 0:00:21.8]} 30... Qh4 {[%clk
0:00:39.1]} 31. Rxh4# {[%clk 0:00:21.6]} 1-0

[Event "Early-Titled-Tuesday-Blitz-May-07-2024"]
[Site "Chess.com"]
[Date "2024.05.07"]
[Round "8"]
[White "DominguezOnYoutube"]
[Black "Dedic8"]
[Result "1-0"]
[WhiteElo "2977"]
[BlackElo "2864"]
[TimeControl "180+1"]
[EndTime "9:33:47 PDT"]
[Termination "DominguezOnYoutube won by resignation"]

1. e4 {[%clk 0:02:59.9]} 1... e5 {[%clk 0:02:58.4]} 2. Nf3 {[%clk 0:02:59.4]}
2... Nc6 {[%clk 0:02:58.8]} 3. Bb5 {[%clk 0:02:59.1]} 3... a6 {[%clk 0:02:59.4]}
4. Ba4 {[%clk 0:02:59.1]} 4... Nf6 {[%clk 0:03:00]} 5. O-O {[%clk 0:02:58.5]}
5... b5 {[%clk 0:03:00.4]} 6. Bb3 {[%clk 0:02:58.2]} 6... Bc5 {[%clk 0:03:01.2]}
7. c3 {[%clk 0:02:57.8]} 7... d6 {[%clk 0:03:01.1]} 8. d4 {[%clk 0:02:57.2]}
8... Bb6 {[%clk 0:03:01.6]} 9. Re1 {[%clk 0:02:57.7]} 9... h6 {[%clk 0:02:51.3]}
10. a4 {[%clk 0:02:56.7]} 10... Rb8 {[%clk 0:02:48.7]} 11. axb5 {[%clk
0:02:46.3]} 11... axb5 {[%clk 0:02:48.7]} 12. Na3 {[%clk 0:02:47]} 12... O-O
{[%clk 0:02:25.5]} 13. Nxb5 {[%clk 0:02:46.3]} 13... Bg4 {[%clk 0:01:50.2]} 14.
Be3 {[%clk 0:02:45.4]} 14... Nxe4 {[%clk 0:01:41.2]} 15. Bd5 {[%clk 0:02:38.7]}
15... exd4 {[%clk 0:01:19.4]} 16. cxd4 {[%clk 0:02:30.4]} 16... Ba5 {[%clk
0:01:15.3]} 17. Bxe4 {[%clk 0:01:23.5]} 17... d5 {[%clk 0:00:47.2]} 18. Bd3
{[%clk 0:01:23.5]} 18... Bxe1 {[%clk 0:00:46.4]} 19. Qxe1 {[%clk 0:01:24.4]}
19... Bxf3 {[%clk 0:00:46.2]} 20. gxf3 {[%clk 0:01:25]} 20... Qh4 {[%clk
0:00:40.5]} 21. Qc3 {[%clk 0:01:20.5]} 21... Rb6 {[%clk 0:00:38.6]} 22. Qc5
{[%clk 0:01:10.3]} 22... Rfb8 {[%clk 0:00:34.7]} 23. Nxc7 {[%clk 0:00:59.9]}
23... Ne7 {[%clk 0:00:32.7]} 24. Nxd5 {[%clk 0:00:58.2]} 24... Nxd5 {[%clk
0:00:19.4]} 25. Qxd5 {[%clk 0:00:59.1]} 25... Rxb2 {[%clk 0:00:17.2]} 26. Ra8
{[%clk 0:00:51.4]} 26... Qe7 {[%clk 0:00:09]} 27. Qe4 {[%clk 0:00:39.6]} 27...
Qc7 {[%clk 0:00:04.4]} 28. Qe8+ {[%clk 0:00:36.1]} 1-0

[Event "Early-Titled-Tuesday-Blitz-May-07-2024"]
[Site "Chess.com"]
[Date "2024.05.07"]
[Round "8"]
[White "thesupera12"]
[Black "Zq1"]
[Result "1-0"]
[WhiteElo "2482"]
[BlackElo "2612"]
[TimeControl "180+1"]
[EndTime "9:33:47 PDT"]
[Termination "thesupera12 won by resignation"]

1. d4 {[%clk 0:03:00.2]} 1... Nf6 {[%clk 0:02:59.4]} 2. Bg5 {[%clk 0:03:00.1]}
2... c5 {[%clk 0:02:58.5]} 3. Bxf6 {[%clk 0:03:00.1]} 3... gxf6 {[%clk
0:02:58.1]} 4. c3 {[%clk 0:03:00.6]} 4... b6 {[%clk 0:02:48.7]} 5. Nf3 {[%clk
0:02:59.8]} 5... Bb7 {[%clk 0:02:47.7]} 6. e3 {[%clk 0:02:59.4]} 6... Bg7 {[%clk
0:02:47]} 7. g3 {[%clk 0:02:59.6]} 7... O-O {[%clk 0:02:45.7]} 8. Bg2 {[%clk
0:03:00.2]} 8... Nc6 {[%clk 0:02:44.6]} 9. O-O {[%clk 0:02:58.8]} 9... d5 {[%clk
0:02:43.3]} 10. Nbd2 {[%clk 0:02:58.6]} 10... e6 {[%clk 0:02:43.3]} 11. Rc1
{[%clk 0:02:56.4]} 11... f5 {[%clk 0:02:43]} 12. Ne1 {[%clk 0:02:47.9]} 12... c4
{[%clk 0:02:32.9]} 13. f4 {[%clk 0:02:44.7]} 13... b5 {[%clk 0:02:30.8]} 14. g4
{[%clk 0:02:44.6]} 14... fxg4 {[%clk 0:02:29.5]} 15. Qxg4 {[%clk 0:02:44]} 15...
f5 {[%clk 0:02:29.6]} 16. Qg3 {[%clk 0:02:41.4]} 16... Rf6 {[%clk 0:02:28.7]}
17. Nef3 {[%clk 0:02:40.7]} 17... Rg6 {[%clk 0:02:28.4]} 18. Qf2 {[%clk
0:02:41.4]} 18... Kh8 {[%clk 0:02:23.2]} 19. Kh1 {[%clk 0:02:41.8]} 19... Qe7
{[%clk 0:02:19.6]} 20. Rg1 {[%clk 0:02:42.4]} 20... Rg8 {[%clk 0:02:18.8]} 21.
Bf1 {[%clk 0:02:41.6]} 21... Bf6 {[%clk 0:02:12.1]} 22. Be2 {[%clk 0:02:41.1]}
22... a5 {[%clk 0:02:07]} 23. Rxg6 {[%clk 0:02:36.4]} 23... Rxg6 {[%clk
0:02:05.7]} 24. Rg1 {[%clk 0:02:37.1]} 24... Rxg1+ {[%clk 0:01:57.4]} 25. Qxg1
{[%clk 0:02:38]} 25... b4 {[%clk 0:01:54.1]} 26. Ne5 {[%clk 0:02:37.6]} 26...
Nxe5 {[%clk 0:01:45.6]} 27. fxe5 {[%clk 0:02:35.9]} 27... Bg5 {[%clk 0:01:41.3]}
28. Nf3 {[%clk 0:02:26.7]} 28... Bh6 {[%clk 0:01:41.3]} 29. Qc1 {[%clk
0:02:24.2]} 29... Qf7 {[%clk 0:01:29.3]} 30. cxb4 {[%clk 0:02:16.2]} 30... axb4
{[%clk 0:01:28.2]} 31. Qd2 {[%clk 0:02:16.4]} 31... Qf8 {[%clk 0:01:19.5]} 32.
Ne1 {[%clk 0:02:10.9]} 32... f4 {[%clk 0:01:15]} 33. exf4 {[%clk 0:02:10]} 33...
Bxf4 {[%clk 0:01:03.6]} 34. Qc2 {[%clk 0:02:09.7]} 34... Be3 {[%clk 0:01:01]}
35. Nf3 {[%clk 0:02:07.4]} 35... Bc6 {[%clk 0:00:53.9]} 36. Qd1 {[%clk
0:01:46.9]} 36... Qf4 {[%clk 0:00:48.9]} 37. Qf1 {[%clk 0:01:43.9]} 37... c3
{[%clk 0:00:41.2]} 38. bxc3 {[%clk 0:01:41.7]} 38... bxc3 {[%clk 0:00:40.7]} 39.
Qb1 {[%clk 0:01:40.1]} 39... Bxd4 {[%clk 0:00:17.5]} 40. Qb8+ {[%clk 0:01:37.7]}
40... Kg7 {[%clk 0:00:16.8]} 41. Qc7+ {[%clk 0:01:37.5]} 41... Kg6 {[%clk
0:00:13]} 42. Qxc6 {[%clk 0:01:37.6]} 42... Kf5 {[%clk 0:00:05.9]} 43. Qd7
{[%clk 0:01:22.6]} 43... Bxe5 {[%clk 0:00:05.9]} 44. Qxh7+ {[%clk 0:01:22.7]}
44... Kf6 {[%clk 0:00:04.6]} 45. Qh8+ {[%clk 0:01:19.3]} 45... Kf5 {[%clk
0:00:02.7]} 46. Bd3+ {[%clk 0:01:19.1]} 46... Kg4 {[%clk 0:00:02.8]} 47. Nxe5+
{[%clk 0:01:18.8]} 1-0

[Event "Early-Titled-Tuesday-Blitz-May-07-2024"]
[Site "Chess.com"]
[Date "2024.05.07"]
[Round "8"]
[White "Shield12"]
[Black "Mrlammy"]
[Result "0-1"]
[WhiteElo "2965"]
[BlackElo "2603"]
[TimeControl "180+1"]
[EndTime "9:33:49 PDT"]
[Termination "Mrlammy won by resignation"]

1. b3 {[%clk 0:03:00.9]} 1... d5 {[%clk 0:02:58.9]} 2. Bb2 {[%clk 0:03:01.7]}
2... Nf6 {[%clk 0:02:58.6]} 3. Nf3 {[%clk 0:03:01.6]} 3... Bf5 {[%clk
0:02:58.5]} 4. d3 {[%clk 0:03:01.4]} 4... Nbd7 {[%clk 0:02:57.4]} 5. g3 {[%clk
0:03:02.3]} 5... h6 {[%clk 0:02:56.2]} 6. Bg2 {[%clk 0:03:03.2]} 6... e6 {[%clk
0:02:56.5]} 7. O-O {[%clk 0:03:04.1]} 7... Be7 {[%clk 0:02:55.5]} 8. Nbd2 {[%clk
0:03:05]} 8... O-O {[%clk 0:02:54.4]} 9. c4 {[%clk 0:03:05.9]} 9... c6 {[%clk
0:02:53.2]} 10. a3 {[%clk 0:03:05.6]} 10... Bh7 {[%clk 0:02:45.5]} 11. Rc1
{[%clk 0:03:05.4]} 11... Rc8 {[%clk 0:02:36.8]} 12. b4 {[%clk 0:03:04.6]} 12...
Qc7 {[%clk 0:02:34.7]} 13. Qb3 {[%clk 0:03:02.8]} 13... Rfe8 {[%clk 0:02:32.1]}
14. Bd4 {[%clk 0:02:57.1]} 14... Qb8 {[%clk 0:02:31]} 15. Qb2 {[%clk 0:02:56.5]}
15... Bd6 {[%clk 0:02:11.7]} 16. Bc3 {[%clk 0:02:55.8]} 16... e5 {[%clk
0:02:05.2]} 17. Qb3 {[%clk 0:02:54.1]} 17... e4 {[%clk 0:01:59.6]} 18. dxe4
{[%clk 0:02:53.1]} 18... dxe4 {[%clk 0:01:55.7]} 19. Nd4 {[%clk 0:02:52.7]}
19... e3 {[%clk 0:01:53.8]} 20. fxe3 {[%clk 0:02:51.4]} 20... Rxe3 {[%clk
0:01:52.8]} 21. Rf3 {[%clk 0:02:43.7]} 21... Re7 {[%clk 0:01:46.3]} 22. c5
{[%clk 0:02:34.5]} 22... Bc7 {[%clk 0:01:42.9]} 23. Rcf1 {[%clk 0:02:28.3]}
23... Rce8 {[%clk 0:01:38.3]} 24. Bh3 {[%clk 0:02:19.2]} 24... Ne5 {[%clk
0:01:33]} 25. Re3 {[%clk 0:02:17.3]} 25... Neg4 {[%clk 0:01:25.3]} 26. Rxe7
{[%clk 0:02:17.3]} 26... Rxe7 {[%clk 0:01:26.2]} 27. Rf3 {[%clk 0:02:17.6]}
27... Qe8 {[%clk 0:01:18.4]} 28. Nf1 {[%clk 0:02:13.8]} 28... Ne3 {[%clk
0:01:12.2]} 29. Nxe3 {[%clk 0:01:49.3]} 29... Rxe3 {[%clk 0:01:13.1]} 30. Qb2
{[%clk 0:01:47.5]} 30... Rxf3 {[%clk 0:01:06.2]} 31. exf3 {[%clk 0:01:46.9]}
31... Qe3+ {[%clk 0:01:02.4]} 32. Kg2 {[%clk 0:01:47.1]} 32... Nd5 {[%clk
0:00:52.6]} 33. Bd2 {[%clk 0:01:47]} 33... Qd3 {[%clk 0:00:43.9]} 34. Be1 {[%clk
0:01:26.6]} 34... Be5 {[%clk 0:00:25.7]} 35. Bf2 {[%clk 0:01:22.6]} 35... Ne3+
{[%clk 0:00:22.9]} 36. Bxe3 {[%clk 0:01:03.7]} 36... Qxe3 {[%clk 0:00:23.8]} 37.
Qe2 {[%clk 0:01:02.4]} 37... Bxd4 {[%clk 0:00:20.6]} 38. Qxe3 {[%clk 0:01:00.9]}
38... Bxe3 {[%clk 0:00:21.5]} 39. Bc8 {[%clk 0:01:00.7]} 39... b6 {[%clk
0:00:20.4]} 40. cxb6 {[%clk 0:00:59.1]} 40... Bxb6 {[%clk 0:00:21.3]} 41. Bb7
{[%clk 0:00:57.3]} 41... c5 {[%clk 0:00:21.6]} 42. bxc5 {[%clk 0:00:56.9]} 42...
Bxc5 {[%clk 0:00:22.5]} 43. f4 {[%clk 0:00:57.3]} 43... Bc2 {[%clk 0:00:21.8]}
0-1

[Event "Early-Titled-Tuesday-Blitz-May-07-2024"]
[Site "Chess.com"]
[Date "2024.05.07"]
[Round "8"]
[White "azikom"]
[Black "Zampronha1971"]
[Result "1-0"]
[WhiteElo "2739"]
[BlackElo "2457"]
[TimeControl "180+1"]
[EndTime "9:33:51 PDT"]
[Termination "azikom won on time"]

1. d4 {[%clk 0:02:59.3]} 1... Nf6 {[%clk 0:02:59.3]} 2. c4 {[%clk 0:02:58.8]}
2... e6 {[%clk 0:02:59.8]} 3. Nc3 {[%clk 0:02:58.3]} 3... Bb4 {[%clk 0:02:59.5]}
4. e3 {[%clk 0:02:58.3]} 4... O-O {[%clk 0:02:58.1]} 5. Ne2 {[%clk 0:02:58.6]}
5... d5 {[%clk 0:02:58.2]} 6. a3 {[%clk 0:02:58.7]} 6... Bd6 {[%clk 0:02:56.2]}
7. c5 {[%clk 0:02:57.4]} 7... Be7 {[%clk 0:02:55.6]} 8. b4 {[%clk 0:02:58]} 8...
e5 {[%clk 0:02:40.6]} 9. dxe5 {[%clk 0:02:55.8]} 9... Ng4 {[%clk 0:02:40.5]} 10.
f4 {[%clk 0:02:54.2]} 10... c6 {[%clk 0:02:33.9]} 11. h3 {[%clk 0:02:52.6]}
11... Nh6 {[%clk 0:02:31.1]} 12. e4 {[%clk 0:02:45.6]} 12... f6 {[%clk
0:02:10.2]} 13. exd5 {[%clk 0:02:44.1]} 13... fxe5 {[%clk 0:02:10.2]} 14. d6
{[%clk 0:02:39.6]} 14... Bh4+ {[%clk 0:01:37.2]} 15. g3 {[%clk 0:02:38.5]} 15...
Bxg3+ {[%clk 0:01:22.7]} 16. Nxg3 {[%clk 0:02:36.8]} 16... Qh4 {[%clk
0:01:23.3]} 17. Qb3+ {[%clk 0:02:27.3]} 17... Kh8 {[%clk 0:01:20.7]} 18. Ne2
{[%clk 0:02:23.3]} 18... exf4 {[%clk 0:01:19.7]} 19. Bxf4 {[%clk 0:02:20.5]}
19... Nf5 {[%clk 0:01:15]} 20. O-O-O {[%clk 0:02:14.3]} 20... a5 {[%clk
0:01:05.2]} 21. Nxf5 {[%clk 0:02:06.1]} 21... Bxf5 {[%clk 0:01:02.2]} 22. Rg1
{[%clk 0:02:00.2]} 22... axb4 {[%clk 0:00:40.4]} 23. Qxb4 {[%clk 0:01:59.8]}
23... Nd7 {[%clk 0:00:20.9]} 24. Qc3 {[%clk 0:01:57]} 24... Rf7 {[%clk
0:00:18.6]} 25. Be3 {[%clk 0:01:47.5]} 25... Qe4 {[%clk 0:00:16.1]} 26. Nd4
{[%clk 0:01:41.7]} 26... Bg6 {[%clk 0:00:13]} 27. Bc4 {[%clk 0:01:28.3]} 27...
Ra4 {[%clk 0:00:08.6]} 28. Rxg6 {[%clk 0:01:23.6]} 28... hxg6 {[%clk 0:00:07.1]}
29. Bxf7 {[%clk 0:01:22.4]} 29... Nxc5 {[%clk 0:00:06.4]} 30. Nc2 {[%clk
0:01:15]} 30... Ra5 {[%clk 0:00:04.4]} 31. Bxc5 {[%clk 0:01:09.6]} 31... Rb5
{[%clk 0:00:00.8]} 32. Ba2 {[%clk 0:00:57.6]} 32... Qf4+ {[%clk 0:00:01.7]} 33.
Be3 {[%clk 0:00:57.2]} 1-0

[Event "Early-Titled-Tuesday-Blitz-May-07-2024"]
[Site "Chess.com"]
[Date "2024.05.07"]
[Round "8"]
[White "kidagent"]
[Black "Iskusnyh"]
[Result "0-1"]
[WhiteElo "2359"]
[BlackElo "2591"]
[TimeControl "180+1"]
[EndTime "9:33:51 PDT"]
[Termination "Iskusnyh won by resignation"]

1. e4 {[%clk 0:03:00.9]} 1... e6 {[%clk 0:02:59.5]} 2. d4 {[%clk 0:03:00.2]}
2... d5 {[%clk 0:02:59]} 3. Nd2 {[%clk 0:03:00.8]} 3... c5 {[%clk 0:02:57.7]} 4.
exd5 {[%clk 0:03:00.6]} 4... Qxd5 {[%clk 0:02:56]} 5. dxc5 {[%clk 0:03:00.8]}
5... Nf6 {[%clk 0:02:54.3]} 6. Ngf3 {[%clk 0:03:00.5]} 6... Qxc5 {[%clk
0:02:51]} 7. Bd3 {[%clk 0:02:59.1]} 7... Nbd7 {[%clk 0:02:51]} 8. O-O {[%clk
0:02:58.5]} 8... Qc7 {[%clk 0:02:51.1]} 9. c3 {[%clk 0:02:55.2]} 9... Be7 {[%clk
0:02:47.2]} 10. Qe2 {[%clk 0:02:53.3]} 10... b6 {[%clk 0:02:47.1]} 11. Nd4
{[%clk 0:02:42.2]} 11... Bb7 {[%clk 0:02:42.9]} 12. N2f3 {[%clk 0:02:40.3]}
12... O-O {[%clk 0:02:19.3]} 13. Bg5 {[%clk 0:02:17.8]} 13... Nc5 {[%clk
0:02:10.8]} 14. Bc2 {[%clk 0:02:11.8]} 14... Nd5 {[%clk 0:02:03.8]} 15. Bxe7
{[%clk 0:02:10.7]} 15... Qxe7 {[%clk 0:01:57.1]} 16. Rfe1 {[%clk 0:02:07.5]}
16... Qf6 {[%clk 0:01:49.6]} 17. Ne5 {[%clk 0:02:00]} 17... Nf4 {[%clk
0:01:44.7]} 18. Qg4 {[%clk 0:01:56.6]} 18... Nxg2 {[%clk 0:01:25.7]} 19. Re2
{[%clk 0:01:54.3]} 19... Nf4 {[%clk 0:01:24.7]} 20. Re3 {[%clk 0:01:52.2]} 20...
Rad8 {[%clk 0:01:19.6]} 21. b4 {[%clk 0:01:31.9]} 21... Rd5 {[%clk 0:00:58.8]}
22. Ndf3 {[%clk 0:01:22.2]} 22... Nd7 {[%clk 0:00:53.3]} 23. Nxd7 {[%clk
0:01:12.6]} 23... Rxd7 {[%clk 0:00:52.9]} 24. Ng5 {[%clk 0:01:08.7]} 24... g6
{[%clk 0:00:50.4]} 25. h4 {[%clk 0:00:53.9]} 25... h5 {[%clk 0:00:48.8]} 26. Qg3
{[%clk 0:00:49]} 26... Rfd8 {[%clk 0:00:44.7]} 27. Rae1 {[%clk 0:00:47.8]} 27...
Rd2 {[%clk 0:00:43.1]} 28. Bb3 {[%clk 0:00:44.9]} 28... R8d3 {[%clk 0:00:39.2]}
29. Rxd3 {[%clk 0:00:30.2]} 29... Rxd3 {[%clk 0:00:37.7]} 30. f3 {[%clk
0:00:20.4]} 30... Qxc3 {[%clk 0:00:33.8]} 31. Rf1 {[%clk 0:00:13.1]} 31... Ne2+
{[%clk 0:00:33.4]} 0-1